bitfinex/quotes_ETHUSD_20250422
["timestamp","ask_amount","ask_price","bid_price","bid_amount"]
[1745340024342,12.13831295,1696.6,1696.3,0.12588674]
[1745340024646,18.03276192,1696.6,1696.3,0.12588674]
[1745340024846,12.13831295,1696.6,1696.3,0.12588674]
[1745340025734,18.03272298,1696.6,1696.3,0.12588674]
[1745340025939,12.13831295,1696.6,1696.3,0.12588674]
[1745340026651,5.89449448,1696.5,1696.3,0.12588674]
[1745340027451,0.8117,1696.4,1696.3,0.12588674]
[1745340027758,5.89617744,1696.1,1695.8,0.5892]
[1745340028043,6.70797096,1696.0,1695.9,0.13083218]
[1745340028549,6.7086218,1695.8,1695.7,0.4060506]
[1745340029640,5.8967322,1695.9,1695.7,0.4060506]
[1745340029838,8.79651484,1696.0,1695.7,0.4060506]
[1745340029839,18.70457185,1696.0,1695.7,0.4060506]
[1745340030038,5.89675827,1695.9,1695.7,0.4060506]
[1745340030254,11.7936401,1695.9,1695.7,0.4060506]
[1745340030560,18.70458588,1696.0,1695.7,0.4060506]
[1745340030951,6.20439415,1695.9,1695.7,0.4060506]
[1745340031627,12.10122749,1695.9,1695.7,0.4060506]
[1745340032127,6.20439415,1695.9,1695.7,0.4060506]
[1745340032451,6.2044244,1695.9,1695.7,0.4060506]
[1745340032628,7.79791914,1695.9,1695.7,0.4060506]
[1745340032831,5.8969218,1695.8,1695.7,0.4060506]
[1745340034425,6.7086218,1695.8,1695.7,0.4060506]
[1745340036565,5.8969218,1695.8,1695.7,0.4060506]
[1745340039873,5.8969218,1695.8,1695.7,0.69504856]
[1745340040067,7.88798043,1695.8,1695.7,0.69504856]
[1745340040580,7.88798043,1695.8,1695.7,0.4060506]
[1745340041443,5.8969218,1695.8,1695.7,0.4060506]
[1745340041629,6.1,1696.0,1695.7,0.4060506]
[1745340041830,12.44785163,1696.1,1695.8,0.7933]
[1745340042062,6.55175134,1696.1,1695.8,0.7933]
[1745340042266,6.244,1696.1,1695.9,0.29190976]
[1745340042636,6.244,1696.1,1695.9,0.70114034]
[1745340042836,6.244,1696.1,1696.0,0.29224011]
[1745340043140,12.13987878,1696.1,1696.0,0.29224011]
[1745340043361,12.14011632,1696.1,1695.8,0.7933]
[1745340043682,12.14011632,1696.1,1695.9,0.29042351]
[1745340043683,5.89622641,1696.0,1695.9,0.29042351]
[1745340044036,5.89622641,1696.0,1695.8,0.7933]
[1745340044248,5.89622641,1696.0,1695.9,0.2917249]
[1745340044694,5.89622641,1696.0,1695.7,0.4060506]
[1745340044991,5.89622641,1696.0,1695.8,0.29201662]
[1745340045545,11.79270075,1696.0,1695.8,0.29201662]
[1745340046188,11.79271932,1696.0,1695.8,0.29201662]
[1745340046694,5.89657409,1695.9,1695.8,0.29201662]
[1745340050683,5.87782364,1695.9,1695.8,0.29201662]
[1745340055007,12.74012364,1695.9,1695.8,0.29201662]
[1745340055196,5.8969218,1695.8,1695.7,0.4060506]
[1745340057075,11.99682671,1695.9,1695.7,0.4060506]
[1745340057709,5.8969218,1695.8,1695.7,0.4060506]
[1745340060820,8.51317183,1695.8,1695.7,0.4060506]
[1745340062305,6.6930218,1695.8,1695.7,0.4060506]
[1745340062504,6.6930218,1695.8,1695.7,0.64996931]
[1745340062809,6.6930218,1695.8,1695.7,0.4060506]
[1745340063414,6.6930218,1695.8,1695.7,0.64959589]
[1745340063883,6.6930218,1695.8,1695.7,0.4060506]
[1745340064079,9.18244742,1695.8,1695.7,0.4060506]
[1745340065688,0.7839,1695.5,1694.8,0.7582]
[1745340065914,5.89946083,1695.1,1694.8,0.7582]
[1745340066118,5.89970501,1695.0,1694.9,0.22875225]
[1745340066621,5.89970501,1695.0,1694.6,3.7582]
[1745340066828,6.228,1694.9,1694.6,0.7582]
[1745340067136,6.228,1694.9,1694.7,0.23050717]
[1745340067321,5.90061142,1694.8,1694.6,0.7582]
[1745340067496,5.90061142,1694.8,1694.7,0.23038293]
[1745340067692,5.90061142,1694.8,1694.6,0.7582]
[1745340067928,5.90061142,1694.8,1694.7,0.23317107]
[1745340068307,13.34085044,1694.9,1694.6,0.7582]
[1745340068507,6.228,1694.9,1694.7,0.23329535]
[1745340068917,12.12807818,1694.9,1694.8,0.23275458]
[1745340069219,12.12807818,1694.9,1694.5,9.68439362]
[1745340069417,12.12807818,1694.9,1694.8,0.23306808]
[1745340069610,12.12807818,1694.9,1694.5,9.68439362]
[1745340069810,12.12807818,1694.9,1694.8,0.23306808]
[1745340070129,14.20918401,1694.9,1694.8,0.23306808]
[1745340070339,20.89313711,1694.9,1694.8,0.23306808]
[1745340070492,0.7839,1694.5,1694.1,1.3474]
[1745340070699,6.229,1694.4,1694.1,1.3474]
[1745340070917,6.229,1694.4,1694.2,0.82871352]
[1745340071120,12.13090777,1694.4,1694.2,0.23951352]
[1745340071346,6.229,1694.4,1694.2,0.23951352]
[1745340072224,12.1309731,1694.4,1694.2,0.23951352]
[1745340072553,6.229,1694.4,1694.2,0.23951352]
[1745340073357,12.13089673,1694.4,1694.2,0.23951352]
[1745340073719,6.68604247,1694.3,1694.2,0.23951352]
[1745340074070,5.90260711,1694.2,1694.0,0.4060506]
[1745340075132,5.90283926,1694.1,1694.0,0.4060506]
[1745340075539,6.68673926,1694.1,1694.0,0.4060506]
[1745340076262,17.90537733,1694.2,1694.0,0.4060506]
[1745340076466,12.13483926,1694.1,1694.0,0.4060506]
[1745340076759,5.90283926,1694.1,1694.0,0.4060506]
[1745340077126,12.13483926,1694.1,1694.0,0.4060506]
[1745340077330,12.91873926,1694.1,1694.0,0.4060506]
[1745340077863,12.13483926,1694.1,1694.0,0.4060506]
[1745340078065,8.91102741,1694.1,1694.0,0.4060506]
[1745340078271,14.81386667,1694.1,1694.0,0.4060506]
[1745340080551,21.69776667,1694.1,1694.0,0.4060506]
[1745340081370,27.62396029,1694.1,1694.0,0.4060506]
[1745340081539,6.68778475,1693.8,1693.7,0.43926072]
[1745340081740,1.25914791,1693.8,1693.7,0.43926072]
[1745340082068,5.90388475,1693.8,1693.7,0.43926072]
[1745340082436,5.90388475,1693.8,1693.7,0.65494459]
[1745340082942,6.68720014,1694.0,1693.7,0.65494459]
[1745340083131,0.7839,1694.0,1693.7,0.43926072]
[1745340083337,5.90380035,1693.9,1693.8,0.21501757]
[1745340083537,7.16290489,1693.9,1693.8,0.21501757]
[1745340084242,1.25910454,1693.9,1693.8,0.21501757]
[1745340084447,5.90353621,1693.9,1693.8,0.21501757]
[1745340085235,5.90388475,1693.8,1693.7,0.43926072]
[1745340085838,12.11888475,1693.8,1693.7,0.43926072]
[1745340086336,12.90278475,1693.8,1693.7,0.43926072]
[1745340087575,19.00278475,1693.8,1693.7,0.43926072]
[1745340087774,22.04341685,1693.8,1693.7,0.43926072]
[1745340087974,27.96961047,1693.8,1693.7,0.43926072]
[1745340088175,0.7839,1693.4,1693.0,0.5892]
[1745340088347,6.215,1693.3,1693.1,0.5892]
[1745340088549,6.215,1693.3,1693.2,0.8023]
[1745340088854,6.215,1693.3,1693.1,0.5892]
[1745340089772,12.12065281,1693.3,1693.1,0.5892]
[1745340091184,6.215,1693.3,1693.0,0.8023]
[1745340091493,6.1,1693.5,1693.3,3.0]
[1745340091792,6.216,1693.8,1693.4,6.72849362]
[1745340091953,12.00275614,1694.2,1693.7,5.90421803]
[1745340092282,5.90337405,1694.0,1693.6,6.72849362]
[1745340092463,6.216,1694.1,1693.6,0.8023]
[1745340092666,5.90370823,1693.9,1693.6,0.8023]
[1745340092869,5.90400259,1693.8,1693.6,0.8023]
[1745340093484,0.59037082,1693.9,1693.6,0.8023]
[1745340093782,5.90369699,1693.9,1693.6,0.8023]
[1745340094170,5.90373423,1693.9,1693.6,0.8023]
[1745340094483,5.90453981,1693.7,1693.4,0.8023]
[1745340094781,6.216,1693.7,1693.4,0.8023]
[1745340095078,5.90493451,1693.5,1693.2,1.3915]
[1745340095391,5.9051163,1693.5,1693.2,1.3915]
[1745340095554,5.90557362,1693.4,1693.2,1.3915]
[1745340096055,12.12189762,1693.3,1693.0,0.8023]
[1745340096454,5.90618047,1693.2,1693.0,0.8023]
[1745340096655,5.90632567,1693.1,1692.7,0.8023]
[1745340096856,5.90632567,1693.1,1692.7,3.8023]
[1745340097079,12.00617166,1693.2,1692.7,4.3915]
[1745340097293,6.1,1693.2,1692.7,5.48234061]
[1745340097475,6.1,1693.2,1692.8,5.92619362]
[1745340097659,6.1,1693.2,1692.8,11.83355029]
[1745340097995,12.00602479,1693.2,1692.8,5.92619362]
[1745340098288,12.00602479,1693.2,1692.8,3.0]
[1745340098588,14.41880953,1693.2,1692.8,3.0]
[1745340099089,20.32507173,1693.2,1692.8,3.0]
[1745340099278,5.90633082,1693.1,1692.8,3.0]
[1745340099591,5.90633082,1693.1,1692.7,7.31769362]
[1745340099592,5.90633082,1693.1,1692.9,0.18442849]
[1745340099789,14.41889798,1693.2,1692.9,0.35734452]
[1745340099993,14.41889798,1693.2,1693.0,0.18442849]
[1745340100189,14.41889798,1693.2,1693.0,0.35667797]
[1745340100491,8.51278474,1693.2,1693.0,0.35667797]
[1745340100694,6.1,1693.2,1693.1,0.18442849]
[1745340100997,12.1218353,1693.3,1693.1,0.35658277]
[1745340101702,5.90597684,1693.2,1693.1,0.35658277]
[1745340102192,12.12170074,1693.3,1693.1,1.16158277]
[1745340102376,12.31355532,1693.4,1693.2,0.18442849]
[1745340102584,6.217,1693.3,1693.2,0.18442849]
[1745340102889,6.217,1693.3,1693.1,0.805]
[1745340103093,6.217,1693.3,1693.2,0.18439249]
[1745340103299,6.1,1693.4,1693.2,0.62963555]
[1745340103465,6.217,1693.3,1693.2,1.51109453]
[1745340103672,6.217,1693.3,1693.2,1.32670204]
[1745340104079,6.217,1693.3,1693.2,1.51108004]
[1745340104280,6.217,1693.3,1693.2,0.184378]
[1745340104958,12.12262806,1693.3,1693.2,0.184378]
[1745340105488,12.95562806,1693.3,1693.2,0.184378]
[1745340107367,12.12262806,1693.3,1693.2,0.184378]
[1745340107572,6.217,1693.3,1693.2,0.184378]
[1745340108962,12.12262806,1693.3,1693.2,0.184378]
[1745340110291,14.75843543,1693.3,1693.2,0.184378]
[1745340110710,13.92543543,1693.3,1693.2,0.184378]
[1745340111003,13.92543543,1693.3,1693.2,0.34179377]
[1745340112469,6.217,1693.3,1693.2,0.34179377]
[1745340112715,12.10762806,1693.3,1693.2,0.34179377]
[1745340113021,6.202,1693.3,1693.2,0.34179377]
[1745340113293,12.10762806,1693.3,1693.2,0.34179377]
[1745340113794,12.94062806,1693.3,1693.2,0.33058371]
[1745340114094,14.74193543,1693.3,1693.2,0.184378]
[1745340114399,14.74193543,1693.3,1693.2,0.33063548]
[1745340115412,7.035,1693.3,1693.2,0.33063548]
[1745340115704,6.202,1693.3,1693.2,0.184378]
[1745340116106,6.202,1693.3,1693.2,0.33051111]
[1745340116472,6.202,1693.3,1693.2,12.16268157]
[1745340116693,25.674,1693.5,1693.4,0.7823]
[1745340117008,25.674,1693.5,1693.4,1.10640316]
[1745340117993,25.674,1693.5,1693.4,1.57596348]
[1745340118170,25.674,1693.5,1693.4,1.10640316]
[1745340119413,25.674,1693.5,1693.4,0.92202516]
[1745340120121,31.57893061,1693.5,1693.4,0.13972516]
[1745340120488,31.57912616,1693.5,1693.0,0.7823]
[1745340120838,31.57912616,1693.5,1693.0,3.7823]
[1745340120989,37.48436109,1693.5,1693.1,0.52542925]
[1745340121190,5.90573635,1693.3,1693.1,0.14719925]
[1745340121382,5.90549225,1693.4,1693.1,0.14719925]
[1745340121615,5.90578283,1693.3,1693.1,0.14719925]
[1745340121808,5.90549225,1693.4,1693.1,0.14719925]
[1745340122408,6.202,1693.5,1693.4,0.7823]
[1745340122689,6.202,1693.5,1693.4,0.90650426]
[1745340123285,6.202,1693.5,1693.4,9.81178357]
[1745340123485,6.202,1693.5,1693.4,3.90650426]
[1745340123795,6.202,1693.5,1693.4,4.88977405]
[1745340124415,6.202,1693.5,1693.4,10.85410023]
[1745340124630,6.50912211,1693.9,1693.5,0.7823]
[1745340124790,6.201,1693.9,1693.6,3.12705494]
[1745340124991,12.10456958,1693.9,1693.6,3.12705494]
[1745340125191,5.90399604,1693.8,1693.6,0.12705494]
[1745340125723,18.00857908,1693.9,1693.6,0.12705494]
[1745340125900,5.90408263,1693.8,1693.6,0.12705494]
[1745340126410,5.90423333,1693.7,1693.6,0.12705494]
[1745340126607,5.90423333,1693.7,1693.3,3.7823]
[1745340126919,5.90423333,1693.7,1693.6,0.12524285]
[1745340127094,5.90423333,1693.7,1693.3,3.7823]
[1745340127095,5.90473057,1693.6,1693.3,3.7823]
[1745340127305,6.201,1693.5,1693.3,3.7823]
[1745340127505,6.201,1693.5,1693.3,0.7823]
[1745340128836,6.201,1693.9,1693.5,0.7823]
[1745340129135,6.201,1693.9,1693.6,3.0]
[1745340129339,12.1046548,1693.9,1693.5,0.7823]
[1745340129640,6.201,1693.9,1693.6,0.12710672]
[1745340130903,12.10460435,1693.9,1693.6,0.12710672]
[1745340131109,12.10457555,1693.9,1693.6,0.12710672]
[1745340132417,5.90390918,1693.8,1693.6,0.12710672]
[1745340132618,12.10457555,1693.9,1693.6,0.12710672]
[1745340133223,5.90402877,1693.8,1693.6,0.12710672]
[1745340133532,12.10457555,1693.9,1693.6,0.12710672]
[1745340134729,5.90393962,1693.8,1693.6,0.12710672]
[1745340135316,12.10469914,1693.9,1693.6,0.12710672]
[1745340135520,8.0028105,1693.9,1693.6,0.12710672]
[1745340135722,5.90414938,1693.8,1693.6,0.12710672]
[1745340136128,18.00853199,1693.9,1693.6,0.12710672]
[1745340136455,12.10459244,1693.9,1693.6,0.12710672]
[1745340137232,18.00837908,1693.9,1693.6,0.12710672]
[1745340137436,12.10459244,1693.9,1693.6,0.12710672]
[1745340137640,13.90639052,1693.9,1693.6,0.12710672]
[1745340137952,19.81018186,1693.9,1693.6,0.12710672]
[1745340138249,13.90639052,1693.9,1693.6,0.12710672]
[1745340139153,5.90410204,1693.8,1693.6,0.12710672]
[1745340139948,13.90650714,1693.9,1693.6,0.12710672]
[1745340140512,8.00279808,1693.9,1693.6,0.12710672]
[1745340140751,6.201,1693.9,1693.6,0.12710672]
[1745340140959,6.201,1693.9,1693.7,0.77]
[1745340141331,6.201,1693.9,1693.8,0.12307535]
[1745340147823,12.10453621,1693.9,1693.8,0.12307535]
[1745340148150,19.88621447,1693.9,1693.5,0.7951]
[1745340148328,13.98238177,1693.9,1693.8,0.12204239]
[1745340148839,19.88617577,1693.9,1693.5,0.7951]
[1745340149030,19.88618163,1693.9,1693.6,0.12290948]
[1745340149226,13.98238177,1693.9,1693.6,0.12290948]
[1745340149427,7.30223434,1693.8,1693.6,0.12290948]
[1745340151041,5.90423333,1693.7,1693.6,0.12290948]
[1745340151278,5.90423333,1693.7,1693.4,3.5892]
[1745340151485,5.90458195,1693.6,1693.5,0.12424692]
[1745340151772,11.8094517,1693.6,1693.3,6.8451]
[1745340151938,12.00458195,1693.6,1693.5,0.12424692]
[1745340152141,5.90493061,1693.5,1693.4,0.12491304]
[1745340152381,5.90563375,1693.3,1693.1,0.791]
[1745340152584,12.08912865,1693.2,1692.9,0.791]
[1745340153070,5.90640131,1693.1,1692.9,0.791]
[1745340153241,12.08912865,1693.2,1692.9,0.791]
[1745340154381,13.88862471,1693.2,1692.9,0.791]
[1745340154551,5.90687915,1693.0,1692.6,5.94214226]
[1745340154757,5.90712331,1692.9,1692.6,0.791]
[1745340155086,6.184,1692.8,1692.6,0.791]
[1745340155637,5.90772139,1692.7,1692.4,0.791]
[1745340155868,14.07239363,1692.8,1692.4,0.791]
[1745340156171,6.184,1692.8,1692.4,6.79222702]
[1745340156386,6.184,1692.9,1692.8,0.791]
[1745340158571,19.473,1693.3,1692.9,3.0]
[1745340158777,6.185,1693.2,1693.0,5.94214226]
[1745340159077,6.185,1693.2,1693.1,0.791]
[1745340159780,6.185,1693.2,1693.1,0.90131709]
[1745340161085,6.185,1693.6,1693.3,5.90542596]
[1745340161393,6.185,1693.6,1693.4,0.1098136]
[1745340161591,6.185,1693.6,1693.3,0.791]
[1745340161877,6.185,1693.6,1693.4,5.94214226]
[1745340163685,6.185,1693.6,1693.5,0.8019]
[1745340163843,6.185,1693.6,1693.5,2.06682128]
[1745340164379,6.185,1693.6,1693.5,0.8019]
[1745340168656,6.185,1693.6,1693.5,9.70683061]
[1745340169058,6.194,1694.0,1693.8,0.8019]
[1745340169259,6.194,1694.0,1693.8,6.74404226]
[1745340171751,6.194,1694.0,1693.8,12.64776861]
[1745340171956,0.01,1694.0,1693.9,10.16831307]
[1745340172165,0.01,1694.0,1693.9,10.22733974]
[1745340172378,0.01,1694.0,1693.9,4.26477686]
[1745340173263,0.01,1694.0,1693.9,10.16831307]
[1745340173465,0.01,1694.0,1693.9,4.26477686]
[1745340173864,0.01,1694.0,1693.9,10.16831307]
[1745340177901,0.01,1694.0,1693.9,10.97021307]
[1745340182616,0.01,1694.0,1693.9,3.8019]
[1745340182791,0.01,1694.0,1693.9,0.8019]
[1745340182992,0.01,1694.0,1693.9,6.74404226]
[1745340183175,0.01,1694.0,1693.8,6.05]
[1745340183380,0.01,1694.0,1693.8,17.89597033]
[1745340183580,0.01,1694.0,1693.8,11.99214226]
[1745340184531,0.60129503,1694.0,1693.8,6.05]
[1745340184680,0.01,1694.0,1693.8,6.05]
[1745340184887,0.01,1694.0,1693.8,11.99214226]
[1745340185897,0.01,1694.0,1693.8,6.05]
[1745340186521,5.90353621,1693.9,1693.8,6.05]
[1745340186885,5.90395726,1693.8,1693.5,5.94214226]
[1745340187113,1.87452935,1693.8,1693.5,5.94214226]
[1745340188220,7.77848279,1693.8,1693.5,5.94214226]
[1745340188534,6.9378,1693.9,1693.5,5.94214226]
[1745340189030,12.84145666,1693.9,1693.5,5.94214226]
[1745340189325,5.90390973,1693.8,1693.5,5.94214226]
[1745340190126,5.90436884,1693.7,1693.5,5.94214226]
[1745340190444,5.90399263,1693.8,1693.3,8.94214226]
[1745340190645,5.90399263,1693.8,1693.3,10.5071206]
[1745340191023,18.74531955,1693.9,1693.4,0.8305]
[1745340191231,5.90401712,1693.8,1693.4,0.8305]
[1745340192933,11.80820653,1693.8,1693.4,0.8305]
[1745340193745,5.90427051,1693.7,1693.4,0.8305]
[1745340195047,5.90427051,1693.7,1693.3,6.77264226]
[1745340195346,0.815,1693.6,1693.3,5.94214226]
[1745340196421,6.71973619,1693.6,1693.3,5.94214226]
[1745340196676,12.07193445,1693.5,1693.1,9.77264226]
[1745340196850,6.167,1693.5,1693.1,9.77264226]
[1745340197340,12.07196433,1693.5,1693.1,9.77264226]
[1745340197521,6.167,1693.5,1693.1,11.3405577]
[1745340198673,12.07194226,1693.5,1693.1,11.3405577]
[1745340198962,12.07198751,1693.5,1693.1,11.3405577]
[1745340199158,12.0719519,1693.5,1693.1,11.3405577]
[1745340199337,6.167,1693.5,1693.1,10.5100577]
[1745340199670,12.07196523,1693.5,1693.1,10.5100577]
[1745340200159,6.167,1693.5,1693.1,7.5100577]
[1745340201157,6.167,1693.5,1693.3,5.94214226]
[1745340203675,6.167,1693.5,1693.3,6.00119722]
[1745340203965,6.1,1693.7,1693.4,6.73544668]
[1745340204151,6.1,1693.7,1693.6,5.94214226]
[1745340204464,6.1,1693.7,1693.4,6.77264226]
[1745340204668,5.90462156,1693.6,1693.2,0.8305]
[1745340205165,12.05498897,1693.5,1693.0,3.8305]
[1745340205339,0.815,1693.4,1693.1,5.94214226]
[1745340206489,6.7204127,1693.4,1693.1,5.94214226]
[1745340206688,6.7204127,1693.4,1692.9,5.94214226]
[1745340206689,5.90569598,1693.3,1692.9,5.94214226]
[1745340206989,5.90569598,1693.3,1692.9,3.0]
[1745340207185,5.90653849,1693.1,1692.8,5.94214226]
[1745340207491,0.8184,1693.0,1692.5,5.94214226]
[1745340207795,0.8184,1692.7,1692.4,5.94214226]
[1745340207962,6.1,1693.0,1692.5,9.71711949]
[1745340207963,6.15,1692.6,1692.5,9.71711949]
[1745340208163,26.1979409,1693.1,1692.8,5.90709414]
[1745340208164,19.473,1693.1,1692.8,5.90709414]
[1745340208365,25.623,1693.1,1692.9,6.75084226]
[1745340208584,25.623,1693.1,1692.9,12.65764476]
[1745340209094,25.623,1693.1,1692.9,6.75084226]
[1745340209297,25.623,1693.1,1692.9,8.01664811]
[1745340210670,25.623,1693.1,1692.9,8.01209294]
[1745340210863,25.623,1693.1,1692.9,8.01664811]
[1745340211795,6.1,1693.4,1693.0,5.9063335]
[1745340211965,6.152,1693.3,1693.2,5.94214226]
[1745340213103,6.152,1693.3,1693.0,5.94214226]
[1745340213403,6.152,1693.3,1693.0,7.92517035]
[1745340214076,6.152,1693.3,1693.0,13.83172426]
[1745340214409,6.152,1693.3,1693.0,7.92517035]
[1745340215111,6.152,1693.3,1693.0,5.94214226]
[1745340215312,12.05776516,1693.3,1692.9,0.8087]
[1745340215525,0.8184,1693.2,1692.7,12.80084226]
[1745340215692,5.90685156,1693.0,1692.7,5.94214226]
[1745340215876,6.152,1692.9,1692.7,5.94214226]
[1745340216601,5.9074938,1692.8,1692.4,5.94214226]
[1745340217115,19.9907096,1692.9,1692.4,5.94214226]
[1745340217305,5.90738755,1692.8,1692.4,5.94214226]
[1745340217501,14.08339387,1692.9,1692.4,5.94214226]
[1745340218211,5.90750922,1692.8,1692.4,5.94214226]
[1745340218509,14.08339387,1692.9,1692.4,7.32188928]
[1745340219014,5.90741704,1692.8,1692.4,7.32188928]
[1745340219405,14.08339387,1692.9,1692.4,7.32188928]
[1745340220208,12.87750871,1692.9,1692.4,7.38096907]
[1745340220591,12.87750871,1692.9,1692.4,7.32188928]
[1745340220800,12.87750871,1692.9,1692.4,7.38096906]
[1745340220979,5.90764482,1692.8,1692.4,5.94214226]
[1745340221741,6.9704,1692.9,1692.4,5.94214226]
[1745340221946,12.87755469,1692.9,1692.4,6.00122343]
[1745340222525,18.78484325,1692.9,1692.4,6.00122343]
[1745340222725,18.78486833,1692.9,1692.4,6.00122343]
[1745340222926,5.90737738,1692.8,1692.4,5.94214226]
[1745340223424,5.90788261,1692.7,1692.3,1.2147506]
[1745340223667,11.8150546,1692.8,1692.4,5.94214226]
[1745340223967,5.90737738,1692.8,1692.4,5.94214226]
[1745340227045,6.152,1692.9,1692.6,5.94214226]
[1745340227383,6.153,1692.9,1692.8,5.94214226]
[1745340227584,19.48,1693.1,1692.8,5.94214226]
[1745340227770,6.153,1693.0,1692.8,5.94214226]
[1745340228084,19.48,1693.1,1692.8,5.94214226]
[1745340228590,6.153,1693.0,1692.8,6.75084226]
[1745340228745,6.153,1693.0,1692.8,8.0166786]
[1745340229160,19.48,1693.1,1692.8,8.0166786]
[1745340229374,6.153,1693.0,1692.8,6.75084226]
[1745340229763,12.05983901,1693.0,1692.6,9.75084226]
[1745340230547,6.153,1693.0,1692.6,9.75084226]
[1745340230746,6.153,1693.0,1692.6,15.65888542]
[1745340230976,6.153,1693.0,1692.6,11.90755031]
[1745340231194,6.9714,1693.0,1692.6,6.75084226]
[1745340231979,6.153,1693.0,1692.6,6.75084226]
[1745340232184,6.153,1693.0,1692.6,12.65880171]
[1745340232901,6.153,1693.0,1692.6,6.75084226]
[1745340233401,6.153,1693.0,1692.6,8.01674497]
[1745340233563,6.6846799,1692.9,1692.6,6.75084226]
[1745340233764,0.7776,1692.9,1692.6,6.75084226]
[1745340234274,12.83727846,1693.0,1692.6,6.75084226]
[1745340234478,18.74426352,1693.0,1692.6,6.75084226]
[1745340234667,16.65970481,1693.0,1692.6,6.75084226]
[1745340235266,6.153,1693.0,1692.8,5.94214226]
[1745340236105,5.90876861,1692.4,1692.3,0.4060506]
[1745340236266,12.04476861,1692.4,1692.3,0.4060506]
[1745340236610,15.12916467,1692.4,1692.3,0.4060506]
[1745340237360,14.67566272,1692.4,1692.3,0.4060506]
[1745340238771,0.7596,1692.4,1692.3,0.4060506]
[1745340238975,6.137,1692.4,1692.3,0.4060506]
[1745340239675,12.80536861,1692.4,1692.3,0.4060506]
[1745340243225,6.8966,1692.4,1692.3,0.4060506]
[1745340243519,12.04576861,1692.4,1692.3,0.4060506]
[1745340243755,6.137,1692.4,1692.3,0.4060506]
[1745340244085,6.137,1692.4,1692.3,6.31516836]
[1745340244396,0.7596,1692.8,1692.3,11.21344331]
[1745340244727,6.137,1692.7,1692.4,6.76054226]
[1745340245022,6.137,1692.7,1692.4,0.8184]
[1745340246807,6.137,1692.7,1692.4,12.72833562]
[1745340247501,6.137,1692.7,1692.4,6.76054226]
[1745340248012,6.137,1692.7,1692.4,14.46650725]
[1745340248416,6.137,1692.7,1692.4,8.55794625]
[1745340248626,6.137,1692.7,1692.4,2.61580399]
[1745340250712,6.137,1692.7,1692.4,0.8184]
[1745340252358,6.137,1692.7,1692.4,6.72716135]
[1745340252517,6.137,1692.7,1692.4,0.8184]
[1745340254521,6.137,1692.7,1692.4,6.78621563]
[1745340254754,6.137,1692.7,1692.4,0.87748049]
[1745340255074,6.137,1692.7,1692.4,1.59671623]
[1745340256544,6.137,1692.7,1692.4,1.53763574]
[1745340256745,6.137,1692.7,1692.4,0.8184]
[1745340256954,6.137,1692.7,1692.4,6.72715939]
[1745340257261,6.137,1692.7,1692.4,6.78623991]
[1745340257425,6.137,1692.7,1692.4,6.72715939]
[1745340258028,6.137,1692.7,1692.4,0.8184]
[1745340258348,6.137,1692.7,1692.4,2.1226178]
[1745340258552,6.137,1692.7,1692.4,0.8184]
[1745340258897,0.8157,1692.6,1692.3,0.4060506]
[1745340259091,12.04487466,1692.7,1692.3,0.4060506]
[1745340259396,6.137,1692.7,1692.3,0.4060506]
[1745340259567,12.04476341,1692.7,1692.3,0.4060506]
[1745340259899,6.137,1692.7,1692.4,5.96753702]
[1745340260192,6.137,1692.7,1692.5,0.7846]
[1745340261591,5.90819848,1692.6,1692.3,1.1906506]
[1745340262296,18.76857013,1692.7,1692.3,1.1906506]
[1745340262600,12.86060304,1692.7,1692.3,1.1906506]
[1745340262795,14.73742149,1692.7,1692.3,1.1906506]
[1745340263362,6.137,1692.7,1692.4,5.90873745]
[1745340263586,6.137,1692.7,1692.4,5.90855566]
[1745340263895,6.137,1692.7,1692.3,13.0417353]
[1745340264107,6.137,1692.7,1692.4,5.90870918]
[1745340264595,6.137,1692.7,1692.4,5.9677901]
[1745340264791,6.137,1692.7,1692.4,7.86874264]
[1745340265102,6.137,1692.7,1692.4,7.80966172]
[1745340265296,6.137,1692.7,1692.4,7.80972001]
[1745340265598,6.137,1692.7,1692.4,1.90095254]
[1745340266001,6.137,1692.7,1692.4,7.80970762]
[1745340266299,6.137,1692.7,1692.4,7.86878816]
[1745340266521,6.137,1692.7,1692.5,0.5905]
[1745340266735,6.137,1692.7,1692.4,7.80970762]
[1745340267141,6.137,1692.7,1692.4,1.90095254]
[1745340267941,6.137,1692.7,1692.3,13.0417353]
[1745340268095,12.04473979,1692.7,1692.3,7.13279286]
[1745340268427,6.137,1692.7,1692.3,13.04188336]
[1745340269230,6.137,1692.7,1692.4,5.90875305]
[1745340269429,6.137,1692.7,1692.3,13.04188336]
[1745340269730,6.137,1692.7,1692.4,5.90867687]
[1745340271820,6.137,1692.7,1692.4,11.81723525]
[1745340272017,6.137,1692.7,1692.5,5.90826909]
[1745340272322,6.137,1692.7,1692.5,11.85041135]
[1745340273028,6.137,1692.7,1692.6,6.69267042]
[1745340273221,6.137,1692.7,1692.6,8.5469786]
[1745340274138,6.9157,1693.1,1692.7,3.0]
[1745340274349,6.122,1693.1,1692.8,5.94214226]
[1745340274635,6.122,1693.1,1692.8,11.84927491]
[1745340274946,6.122,1693.1,1693.0,5.90667454]
[1745340275505,26.3997,1693.3,1693.0,5.90653943]
[1745340275506,6.122,1693.2,1693.0,5.90653943]
[1745340275713,6.122,1693.2,1693.0,11.84868169]
[1745340276739,6.122,1693.2,1693.0,11.84858576]
[1745340277339,6.122,1693.2,1692.9,3.7846]
[1745340278743,6.122,1693.2,1693.0,5.94214226]
[1745340278902,6.122,1693.2,1692.9,4.56339002]
[1745340279104,6.9377,1693.2,1692.9,4.56339002]
[1745340280100,6.122,1693.2,1692.9,10.47028733]
[1745340280306,6.122,1693.2,1692.9,4.56339002]
[1745340280853,6.122,1693.2,1692.9,1.56339002]
[1745340281020,6.122,1693.2,1692.8,12.63383984]
[1745340281419,6.122,1693.2,1692.8,6.72674226]
[1745340281751,0.7703,1693.1,1692.8,6.72674226]
[1745340284641,6.8923,1693.2,1692.8,12.63408418]
[1745340284950,6.8923,1693.2,1692.8,6.72674226]
[1745340285158,6.8923,1693.2,1692.9,0.67267423]
[1745340286457,6.122,1693.2,1692.9,6.57949965]
[1745340289569,6.122,1693.2,1692.9,0.67267423]